fUST/lending_fUST_20250908
["ID","MTS","AMOUNT","RATE_DAILY","PERIOD"]
[384221325,1757293845122,-809.0,0.00013972,2]
[384221327,1757293845131,-815.74,0.00013972,2]
[384221329,1757293845140,-480.0,0.00013972,2]
[384221331,1757293845150,-295.88065589,0.00013972,2]
[384221333,1757293845159,-1184.01,0.00013972,2]
[384221334,1757293845169,-994.51,0.00013972,2]
[384221336,1757293845178,-481.25,0.00013972,2]
[384221338,1757293845187,-480.0,0.00013972,2]
[384221340,1757293845196,-480.0,0.00013972,2]
[384221342,1757293845205,-480.0,0.00013972,2]
[384221344,1757293845214,-656.64,0.00013972,2]
[384221346,1757293845223,-480.0,0.00013972,2]
[384221348,1757293845233,-386.8,0.00013972,2]
[384221350,1757293845242,-1618.62,0.00013972,2]
[384221352,1757293845251,-480.0,0.00013972,2]
[384221354,1757293845260,-544.3,0.00013972,2]
[384221356,1757293845269,-757.5,0.00013972,2]
[384221358,1757293845279,-556.54,0.00013972,2]
[384221360,1757293845287,-1933.15,0.00013972,2]
[384221362,1757293845296,-480.0,0.00013972,2]
[384221364,1757293845306,-480.0,0.00013972,2]
[384221366,1757293845315,-586.27,0.00013972,2]
[384221368,1757293845324,-480.0,0.00013972,2]
[384221369,1757293845333,-372.4,0.00013972,2]
[384221371,1757293845342,-795.65,0.00013972,2]
[384221373,1757293845352,-1472.44,0.00013972,2]
[384221375,1757293845361,-480.0,0.00013972,2]
[384221377,1757293845371,-480.0,0.00013972,2]
[384221379,1757293845380,-921.72,0.00013972,2]
[384221381,1757293845389,-480.0,0.00013972,2]
[384221383,1757293845399,-480.0,0.00013972,2]
[384221385,1757293845408,-480.0,0.00013972,2]
[384221387,1757293845417,-480.0,0.00013972,2]
[384221389,1757293845426,-410.68,0.00013972,2]
[384221391,1757293845435,-699.17,0.00013972,2]
[384221393,1757293845445,-480.0,0.00013972,2]
[384221395,1757293845454,-151.0,0.00013972,2]
[384221397,1757293845463,-2492.17,0.00013972,2]
[384221399,1757293845472,-480.0,0.00013972,2]
[384221401,1757293845482,-607.49,0.00013972,2]
[384221403,1757293845491,-480.0,0.00013972,2]
[384221405,1757293845500,-480.0,0.00013972,2]
[384221407,1757293845510,-1882.27,0.00013972,2]
[384221409,1757293845519,-747.39,0.00013972,2]
[384221411,1757293845528,-480.0,0.00013972,2]
[384221413,1757293845538,-500.0,0.00013972,2]
[384221415,1757293845547,-2129.4,0.0001399,2]
[384221417,1757293845558,-61136.46499511,0.00014,2]
[384221419,1757293845567,-199.0,0.00014,2]
[384221420,1757293845577,-1461.8471,0.00014,2]
[384221422,1757293845586,-615.31609981,0.00014009,2]
[384221424,1757293845595,-1000.0,0.000142,2]
[384221426,1757293845605,-168.0,0.00014236,2]
[384221428,1757293845614,-157.0,0.00014246,2]
[384221430,1757293845623,-157.0,0.00014246,2]
[384221432,1757293845633,-809.0,0.00014246,2]
[384221434,1757293845643,-480.0,0.00014246,2]
[384221436,1757293845652,-480.0,0.00014246,2]
[384221438,1757293845662,-480.0,0.00014246,2]
[384221440,1757293845671,-528.52,0.00014246,2]
[384221452,1757293845765,-480.0,0.00014246,2]
[384221455,1757293845787,-480.0,0.00014246,2]
[384221457,1757293845796,-224.63,0.00014246,2]
[384221459,1757293845805,-480.0,0.00014246,2]
[384221460,1757293845814,-480.0,0.00014246,2]
[384221462,1757293845823,-480.0,0.00014246,2]
[384221464,1757293845833,-480.0,0.00014246,2]
[384221466,1757293845842,-480.0,0.00014246,2]
[384221468,1757293845851,-480.0,0.00014246,2]
[384221470,1757293845861,-1030.35,0.00014246,2]
[384221472,1757293845870,-480.0,0.00014246,2]
[384221474,1757293845879,-480.0,0.00014246,2]
[384221476,1757293845888,-482.05,0.00014246,2]
[384221478,1757293845897,-480.0,0.00014246,2]
[384221480,1757293845907,-562.31,0.00014246,2]
[384221482,1757293845916,-693.77,0.00014246,2]
[384221484,1757293845926,-691.63,0.00014246,2]
[384221486,1757293845935,-341.96,0.00014246,2]
[384221488,1757293845945,-480.0,0.00014246,2]
[384221490,1757293845955,-518.61,0.00014246,2]
[384221492,1757293845964,-546.97,0.00014246,2]
[384221494,1757293845973,-480.0,0.00014246,2]
[384221496,1757293845983,-480.0,0.00014246,2]
[384221498,1757293845993,-480.0,0.00014246,2]
[384221500,1757293846003,-480.0,0.00014246,2]
[384221502,1757293846012,-450.07317408,0.00014246,2]
[384221504,1757293846021,-480.0,0.00014246,2]
[384221506,1757293846030,-480.0,0.00014246,2]
[384221508,1757293846040,-480.0,0.00014246,2]
[384221510,1757293846049,-278.14413575,0.00014246,2]
[384221512,1757293846058,-480.0,0.00014246,2]
[384221514,1757293846068,-480.0,0.00014246,2]
[384221516,1757293846077,-480.0,0.00014246,2]
[384221518,1757293846086,-480.0,0.00014246,2]
[384221520,1757293846096,-760.44,0.00014246,2]
[384221522,1757293846106,-480.0,0.00014246,2]
[384221524,1757293846115,-517.44,0.00014246,2]
[384221526,1757293846125,-418.87,0.00014246,2]
[384221527,1757293846134,-858.83,0.00014246,2]
[384221529,1757293846144,-501.23,0.00014246,2]
[384221531,1757293846154,-480.0,0.00014246,2]
[384221533,1757293846163,-588.46,0.00014246,2]
[384221535,1757293846172,-480.0,0.00014246,2]
[384221537,1757293846182,-480.0,0.00014246,2]
[384221539,1757293846194,-480.0,0.00014246,2]
[384221541,1757293846203,-480.0,0.00014246,2]
[384221543,1757293846212,-480.0,0.00014246,2]
[384221545,1757293846222,-781.27,0.00014246,2]
[384221548,1757293846232,-616.48,0.00014246,2]
[384221550,1757293846241,-480.0,0.00014246,2]
[384221552,1757293846250,-480.0,0.00014246,2]
[384221554,1757293846259,-480.0,0.00014246,2]
[384221556,1757293846269,-480.0,0.00014246,2]
[384221558,1757293846278,-612.64,0.00014246,2]
[384221560,1757293846287,-480.0,0.00014246,2]
[384221562,1757293846297,-480.0,0.00014246,2]
[384221564,1757293846307,-480.0,0.00014246,2]
[384221566,1757293846315,-480.0,0.00014246,2]
[384221568,1757293846324,-552.52,0.00014246,2]
[384221570,1757293846334,-480.0,0.00014246,2]
[384221572,1757293846343,-480.0,0.00014246,2]
[384221574,1757293846352,-850.07,0.00014246,2]
[384221576,1757293846361,-480.0,0.00014246,2]
[384221578,1757293846370,-6642.13,0.00014246,2]
[384221580,1757293846379,-348.92,0.00014246,2]
[384221581,1757293846389,-673.36,0.00014246,2]
[384221583,1757293846398,-480.0,0.00014246,2]
[384221585,1757293846407,-1174.67,0.00014246,2]
[384221587,1757293846417,-480.0,0.00014246,2]
[384221589,1757293846426,-517.58,0.00014246,2]
[384221591,1757293846436,-999.82,0.00014246,2]
[384221593,1757293846445,-2044.08,0.00014246,2]
[384221595,1757293846454,-674.31,0.00014246,2]
[384221597,1757293846464,-480.0,0.00014246,2]
[384221599,1757293846473,-480.0,0.00014246,2]
[384221601,1757293846483,-480.0,0.00014246,2]
[384221603,1757293846492,-480.0,0.00014246,2]
[384221605,1757293846502,-1129.35,0.00014246,2]
[384221607,1757293846511,-1758.04,0.00014246,2]
[384221609,1757293846521,-3605.43,0.00014246,2]
[384221611,1757293846530,-509.99,0.00014246,2]
[384221613,1757293846539,-1607.6,0.00014246,2]
[384221615,1757293846549,-480.0,0.00014246,2]
[384221617,1757293846563,-480.0,0.00014246,2]
[384221619,1757293846572,-480.0,0.00014246,2]
[384221621,1757293846582,-480.0,0.00014246,2]
[384221623,1757293846591,-601.41,0.00014246,2]
[384221625,1757293846602,-689.51,0.00014246,2]
[384221627,1757293846613,-836.42,0.00014246,2]
[384221629,1757293846622,-480.0,0.00014246,2]
[384221631,1757293846631,-670.46,0.00014246,2]
[384221633,1757293846642,-557.13488639,0.00014246,2]
[384221635,1757293846652,-480.0,0.00014246,2]
[384221637,1757293846661,-480.0,0.00014246,2]
[384221639,1757293846670,-480.0,0.00014246,2]
[384221641,1757293846680,-480.0,0.00014246,2]
[384221643,1757293846689,-1060.67,0.00014246,2]
[384221645,1757293846699,-480.0,0.00014246,2]
[384221647,1757293846708,-480.0,0.00014246,2]
[384221649,1757293846718,-480.0,0.00014246,2]
[384221651,1757293846728,-480.0,0.00014246,2]
[384221653,1757293846737,-15103.81,0.00014246,2]
[384221655,1757293846747,-480.0,0.00014246,2]
[384221657,1757293846756,-4210.01,0.00014246,2]
[384221659,1757293846765,-480.0,0.00014246,2]
[384221661,1757293846774,-480.0,0.00014246,2]
[384221663,1757293846783,-648.02,0.00014246,2]
[384221665,1757293846792,-850.4,0.00014246,2]
[384221667,1757293846801,-793.9,0.00014246,2]
[384221669,1757293846811,-480.0,0.00014246,2]
[384221671,1757293846820,-1124.8,0.00014246,2]
[384221673,1757293846829,-480.0,0.00014246,2]
[384221675,1757293846839,-1960.88,0.00014246,2]
[384221677,1757293846850,-480.0,0.00014246,2]
[384221679,1757293846859,-738.44,0.00014246,2]
[384221681,1757293846868,-2121.4,0.00014246,2]
[384221683,1757293846878,-473.86,0.00014246,2]
[384221685,1757293846887,-454.68698746,0.00014246,2]
[384221687,1757293846896,-3405.04,0.00014246,2]
[384221689,1757293846906,-480.0,0.00014246,2]
[384221691,1757293846915,-1342.85,0.00014246,2]
[384221693,1757293846924,-815.74,0.00014246,2]
[384221695,1757293846934,-480.0,0.00014246,2]
[384221697,1757293846944,-1184.01,0.00014246,2]
[384221699,1757293846953,-994.51,0.00014246,2]
[384221701,1757293846963,-481.25,0.00014246,2]
[384221703,1757293846972,-480.0,0.00014246,2]
[384221705,1757293846982,-480.0,0.00014246,2]
[384221707,1757293846991,-480.0,0.00014246,2]
[384221709,1757293847000,-656.64,0.00014246,2]
[384221711,1757293847009,-566.67,0.00014246,2]
[384221713,1757293847018,-1618.62,0.00014246,2]
[384221715,1757293847027,-480.0,0.00014246,2]
[384221717,1757293847036,-544.3,0.00014246,2]
[384221719,1757293847046,-757.5,0.00014246,2]
[384221721,1757293847055,-556.54,0.00014246,2]
[384221723,1757293847064,-1933.15,0.00014246,2]
[384221725,1757293847074,-480.0,0.00014246,2]
[384221727,1757293847083,-480.0,0.00014246,2]
[384221729,1757293847092,-586.27,0.00014246,2]
[384221731,1757293847101,-430.87040813,0.00014246,2]
[384221733,1757293847110,-795.65,0.00014246,2]
[384221735,1757293847119,-1472.44,0.00014246,2]
[384221736,1757293847128,-480.0,0.00014246,2]
[384221738,1757293847137,-480.0,0.00014246,2]
[384221740,1757293847146,-921.72,0.00014246,2]
[384221742,1757293847155,-480.0,0.00014246,2]
[384221744,1757293847165,-480.0,0.00014246,2]
[384221746,1757293847174,-480.0,0.00014246,2]
[384221748,1757293847183,-699.17,0.00014246,2]
[384221750,1757293847193,-480.0,0.00014246,2]
[384221752,1757293847202,-2492.17,0.00014246,2]
[384221754,1757293847211,-480.0,0.00014246,2]
[384221756,1757293847221,-607.49,0.00014246,2]
[384221758,1757293847231,-371.26886479,0.00014246,2]
[384221760,1757293847240,-480.0,0.00014246,2]
[384221762,1757293847249,-1882.27,0.00014246,2]
[384221764,1757293847258,-747.39,0.00014246,2]
[384221766,1757293847267,-480.0,0.00014246,2]
[384221768,1757293847276,-2600.0,0.00014246,2]
[384221770,1757293847285,-168.0,0.00014324,2]
[384221772,1757293847295,-151.0,0.000144,2]
[384221774,1757293847304,-788.339576,0.00014416,2]
[384221776,1757293847313,-2000.0,0.000145,2]
[384221778,1757293847322,-2000.0,0.000145,2]
[384221780,1757293847332,-208.0,0.0001452,2]
[384221781,1757293847341,-215.0,0.0001452,2]
[384221783,1757293847350,-809.0,0.0001452,2]
[384221785,1757293847361,-506.19690454,0.0001452,2]
[384221786,1757293847370,-480.0,0.0001452,2]
[384221787,1757293847379,-480.0,0.0001452,2]
[384221788,1757293847388,-528.52,0.0001452,2]
[384221789,1757293847398,-480.0,0.0001452,2]
[384221790,1757293847407,-267.14,0.0001452,2]
[384221792,1757293847416,-480.0,0.0001452,2]
[384221793,1757293847425,-480.0,0.0001452,2]
[384221795,1757293847434,-480.0,0.0001452,2]
[384221797,1757293847444,-480.0,0.0001452,2]
[384221799,1757293847454,-480.0,0.0001452,2]
[384221801,1757293847463,-480.0,0.0001452,2]
[384221803,1757293847472,-1030.35,0.0001452,2]
[384221805,1757293847482,-480.0,0.0001452,2]
[384221807,1757293847491,-480.0,0.0001452,2]
[384221809,1757293847501,-480.0,0.0001452,2]
[384221811,1757293847510,-562.31,0.0001452,2]
[384221813,1757293847521,-693.77,0.0001452,2]
[384221815,1757293847530,-691.63,0.0001452,2]
[384221817,1757293847540,-172.54078661,0.0001452,2]
[384221819,1757293847549,-518.61,0.0001452,2]
[384221821,1757293847564,-546.97,0.0001452,2]
[384221823,1757293847573,-480.0,0.0001452,2]
[384221825,1757293847583,-480.0,0.0001452,2]
[384221827,1757293847592,-480.0,0.0001452,2]
[384221830,1757293847602,-480.0,0.0001452,2]
[384221831,1757293847611,-480.0,0.0001452,2]
[384221833,1757293847620,-480.0,0.0001452,2]
[384221835,1757293847630,-480.0,0.0001452,2]
[384221837,1757293847639,-480.0,0.0001452,2]
[384221839,1757293847649,-480.0,0.0001452,2]
[384221841,1757293847658,-480.0,0.0001452,2]
[384221843,1757293847667,-480.0,0.0001452,2]
[384221845,1757293847676,-760.44,0.0001452,2]
[384221847,1757293847685,-480.0,0.0001452,2]
[384221849,1757293847695,-517.44,0.0001452,2]
[384221851,1757293847705,-858.83,0.0001452,2]
[384221853,1757293847715,-501.23,0.0001452,2]
[384221855,1757293847724,-480.0,0.0001452,2]
[384221857,1757293847733,-588.46,0.0001452,2]
[384221859,1757293847742,-429.57,0.0001452,2]
[384221861,1757293847751,-480.0,0.0001452,2]
[384221863,1757293847761,-480.0,0.0001452,2]
[384221865,1757293847770,-480.0,0.0001452,2]
[384221867,1757293847779,-480.0,0.0001452,2]
[384221869,1757293847788,-781.27,0.0001452,2]
[384221871,1757293847797,-480.0,0.0001452,2]
[384221873,1757293847806,-480.0,0.0001452,2]
[384221875,1757293847815,-480.0,0.0001452,2]
[384221877,1757293847825,-480.0,0.0001452,2]
[384221879,1757293847834,-612.64,0.0001452,2]
[384221881,1757293847844,-480.0,0.0001452,2]
[384221893,1757293847946,-480.0,0.0001452,2]
[384221895,1757293847955,-480.0,0.0001452,2]
[384221897,1757293847965,-480.0,0.0001452,2]
[384221899,1757293847974,-552.52,0.0001452,2]
[384221900,1757293847984,-522.20596089,0.0001452,2]
[384221903,1757293847993,-628.48080625,0.0001452,2]
[384221905,1757293848002,-850.07,0.0001452,2]
[384221907,1757293848012,-480.0,0.0001452,2]
[384221908,1757293848022,-6642.13,0.0001452,2]
[384221911,1757293848031,-673.36,0.0001452,2]
[384221912,1757293848040,-480.0,0.0001452,2]
[384221914,1757293848051,-1174.67,0.0001452,2]
[384221916,1757293848061,-480.0,0.0001452,2]
[384221918,1757293848070,-517.58,0.0001452,2]
[384221920,1757293848080,-999.82,0.0001452,2]
[384221922,1757293848089,-2044.08,0.0001452,2]
[384221924,1757293848099,-674.31,0.0001452,2]
[384221926,1757293848109,-480.0,0.0001452,2]
[384221928,1757293848119,-480.0,0.0001452,2]
[384221930,1757293848128,-480.0,0.0001452,2]
[384221932,1757293848138,-1129.35,0.0001452,2]
[384221934,1757293848147,-1758.04,0.0001452,2]
[384221936,1757293848156,-3605.43,0.0001452,2]
[384221938,1757293848165,-509.99,0.0001452,2]
[384221940,1757293848175,-1607.6,0.0001452,2]
[384221942,1757293848185,-480.0,0.0001452,2]
[384221944,1757293848195,-480.0,0.0001452,2]
[384221946,1757293848204,-480.0,0.0001452,2]
[384221948,1757293848214,-601.41,0.0001452,2]
[384221950,1757293848223,-689.51,0.0001452,2]
[384221952,1757293848232,-836.42,0.0001452,2]
[384221954,1757293848242,-480.0,0.0001452,2]
[384221956,1757293848251,-670.46,0.0001452,2]
[384221958,1757293848261,-480.0,0.0001452,2]
[384221960,1757293848270,-480.0,0.0001452,2]
[384221962,1757293848279,-480.0,0.0001452,2]
[384221964,1757293848289,-480.0,0.0001452,2]
[384221966,1757293848299,-1060.67,0.0001452,2]
[384221968,1757293848308,-480.0,0.0001452,2]
[384221970,1757293848318,-480.0,0.0001452,2]
[384221972,1757293848327,-310.3,0.0001452,2]
[384221974,1757293848336,-15103.81,0.0001452,2]
[384221976,1757293848346,-480.0,0.0001452,2]
[384221978,1757293848355,-4210.01,0.0001452,2]
[384221980,1757293848364,-480.0,0.0001452,2]
[384221982,1757293848374,-480.0,0.0001452,2]
[384221984,1757293848383,-648.02,0.0001452,2]
[384221986,1757293848393,-850.4,0.0001452,2]
[384221988,1757293848402,-793.9,0.0001452,2]
[384221990,1757293848412,-480.0,0.0001452,2]
[384221992,1757293848422,-1124.8,0.0001452,2]
[384221994,1757293848431,-480.0,0.0001452,2]
[384221996,1757293848441,-1960.88,0.0001452,2]
[384221998,1757293848450,-480.0,0.0001452,2]
[384222000,1757293848459,-738.44,0.0001452,2]
[384222002,1757293848468,-2121.4,0.0001452,2]
[384222004,1757293848478,-3405.04,0.0001452,2]
[384222006,1757293848488,-480.0,0.0001452,2]
[384222008,1757293848499,-1342.85,0.0001452,2]
[384222009,1757293848509,-815.74,0.0001452,2]
[384222011,1757293848518,-480.0,0.0001452,2]
[384222013,1757293848528,-1184.01,0.0001452,2]
[384222015,1757293848537,-994.51,0.0001452,2]
[384222017,1757293848547,-481.25,0.0001452,2]
[384222019,1757293848560,-480.0,0.0001452,2]
[384222021,1757293848569,-480.0,0.0001452,2]
[384222023,1757293848579,-480.0,0.0001452,2]
[384222025,1757293848587,-656.64,0.0001452,2]
[384222027,1757293848599,-1618.62,0.0001452,2]
[384222029,1757293848608,-480.0,0.0001452,2]
[384222031,1757293848617,-544.3,0.0001452,2]
[384222033,1757293848627,-757.5,0.0001452,2]
[384222035,1757293848641,-1933.15,0.0001452,2]
[384222037,1757293848650,-556.54,0.0001452,2]
[384222039,1757293848659,-480.89,0.0001452,2]
[384222041,1757293848669,-480.0,0.0001452,2]
[384222043,1757293848678,-586.27,0.0001452,2]
[384222045,1757293848688,-795.65,0.0001452,2]
[384222047,1757293848697,-1472.44,0.0001452,2]
[384222049,1757293848706,-480.0,0.0001452,2]
[384222051,1757293848717,-921.72,0.0001452,2]
[384222053,1757293848727,-480.0,0.0001452,2]
[384222055,1757293848737,-596.55,0.0001452,2]
[384222057,1757293848747,-699.17,0.0001452,2]
[384222059,1757293848756,-480.0,0.0001452,2]
[384222061,1757293848766,-2492.17,0.0001452,2]
[384222063,1757293848776,-480.0,0.0001452,2]
[384222065,1757293848785,-607.49,0.0001452,2]
[384222067,1757293848795,-480.0,0.0001452,2]
[384222069,1757293848804,-1882.27,0.0001452,2]
[384222071,1757293848814,-747.39,0.0001452,2]
[384222073,1757293848823,-493.61109139,0.0001452,2]
[384222075,1757293848832,-500.0,0.00014583,2]
[384222077,1757293848842,-500.0,0.00014583,2]
[384222079,1757293848851,-500.0,0.00014583,2]
[384222081,1757293848861,-500.0,0.00014583,2]
[384222083,1757293848870,-175.9023358,0.00014598,2]
[384222085,1757293848880,-1000.0,0.000146,2]
[384222087,1757293848891,-500.0,0.00014619,2]
[384222089,1757293848900,-500.0,0.00014619,2]
[384222091,1757293848910,-500.0,0.00014619,2]
[384222093,1757293848920,-500.0,0.00014657,2]
[384222095,1757293848930,-500.0,0.00014657,2]
[384222097,1757293848940,-151.0,0.000147,2]
[384222099,1757293848950,-500.0,0.00014744,2]
[384222101,1757293848959,-500.0,0.00014744,2]
[384222103,1757293848969,-638.80113688,0.00014744,2]
[384222105,1757293848978,-500.0,0.0001478,2]
[384222107,1757293848990,-500.0,0.0001478,2]
[384222109,1757293848999,-500.0,0.0001478,2]
[384222111,1757293849008,-809.0,0.00014794,2]
[384222113,1757293849018,-480.0,0.00014794,2]
[384222115,1757293849027,-528.52,0.00014794,2]
[384222117,1757293849036,-480.0,0.00014794,2]
[384222119,1757293849045,-480.0,0.00014794,2]
[384222121,1757293849055,-480.0,0.00014794,2]
[384222122,1757293849064,-1030.35,0.00014794,2]
[384222124,1757293849074,-480.0,0.00014794,2]
[384222126,1757293849083,-562.31,0.00014794,2]
[384222128,1757293849093,-693.77,0.00014794,2]
[384222130,1757293849102,-691.63,0.00014794,2]
[384222132,1757293849111,-518.61,0.00014794,2]
[384222134,1757293849122,-546.97,0.00014794,2]
[384222136,1757293849131,-480.0,0.00014794,2]
[384222138,1757293849140,-480.0,0.00014794,2]
[384222140,1757293849149,-480.0,0.00014794,2]
[384222142,1757293849158,-189.88,0.00014794,2]
[384222144,1757293849167,-480.0,0.00014794,2]
[384222146,1757293849177,-480.0,0.00014794,2]
[384222147,1757293849186,-480.0,0.00014794,2]
[384222149,1757293849195,-760.44,0.00014794,2]
[384222151,1757293849205,-480.0,0.00014794,2]
[384222153,1757293849214,-517.44,0.00014794,2]
[384222155,1757293849223,-858.83,0.00014794,2]
[384222157,1757293849233,-501.23,0.00014794,2]
[384222159,1757293849243,-480.0,0.00014794,2]
[384222161,1757293849252,-588.46,0.00014794,2]
[384222163,1757293849261,-480.0,0.00014794,2]
[384222165,1757293849270,-347.16224629,0.00014794,2]
[384222167,1757293849280,-480.0,0.00014794,2]
[384222169,1757293849289,-480.0,0.00014794,2]
[384222171,1757293849298,-781.27,0.00014794,2]
[384222173,1757293849307,-480.0,0.00014794,2]
[384222175,1757293849316,-480.0,0.00014794,2]
[384222176,1757293849325,-480.0,0.00014794,2]
[384222178,1757293849335,-480.0,0.00014794,2]
[384222180,1757293849344,-612.64,0.00014794,2]
[384222182,1757293849353,-480.0,0.00014794,2]
[384222184,1757293849362,-480.0,0.00014794,2]
[384222186,1757293849372,-480.0,0.00014794,2]
[384222188,1757293849381,-480.0,0.00014794,2]
[384222190,1757293849390,-552.52,0.00014794,2]
[384222192,1757293849399,-850.07,0.00014794,2]
[384222194,1757293849409,-480.0,0.00014794,2]
[384222196,1757293849419,-6642.13,0.00014794,2]
[384222198,1757293849428,-673.36,0.00014794,2]
[384222200,1757293849437,-265.29366709,0.00014794,2]
[384222202,1757293849447,-1174.67,0.00014794,2]
[384222204,1757293849456,-480.0,0.00014794,2]
[384222206,1757293849465,-517.58,0.00014794,2]
[384222208,1757293849474,-999.82,0.00014794,2]
[384222210,1757293849484,-2044.08,0.00014794,2]
[384222212,1757293849494,-674.31,0.00014794,2]
[384222213,1757293849504,-312.34,0.00014794,2]
[384222215,1757293849513,-480.0,0.00014794,2]
[384222217,1757293849523,-480.0,0.00014794,2]
[384222219,1757293849532,-1129.35,0.00014794,2]
[384222221,1757293849541,-1758.04,0.00014794,2]
[384222223,1757293849551,-3605.43,0.00014794,2]
[384222225,1757293849564,-509.99,0.00014794,2]
[384222227,1757293849574,-1607.6,0.00014794,2]
[384222229,1757293849583,-480.0,0.00014794,2]
[384222231,1757293849594,-480.0,0.00014794,2]
[384222233,1757293849603,-480.0,0.00014794,2]
[384222235,1757293849612,-601.41,0.00014794,2]
[384222237,1757293849622,-689.51,0.00014794,2]
[384222239,1757293849631,-836.42,0.00014794,2]
[384222241,1757293849641,-480.0,0.00014794,2]
[384222243,1757293849651,-670.46,0.00014794,2]
[384222245,1757293849660,-480.0,0.00014794,2]
[384222247,1757293849670,-480.0,0.00014794,2]
[384222249,1757293849679,-480.0,0.00014794,2]
[384222251,1757293849689,-480.0,0.00014794,2]
[384222253,1757293849698,-1060.67,0.00014794,2]
[384222255,1757293849708,-480.0,0.00014794,2]
[384222257,1757293849718,-480.0,0.00014794,2]
[384222259,1757293849727,-15103.81,0.00014794,2]
[384222261,1757293849737,-480.0,0.00014794,2]
[384222263,1757293849747,-4210.01,0.00014794,2]
[384222265,1757293849758,-480.0,0.00014794,2]
[384222267,1757293849767,-648.02,0.00014794,2]
[384222269,1757293849777,-850.4,0.00014794,2]
[384222271,1757293849786,-793.9,0.00014794,2]
[384222273,1757293849795,-480.0,0.00014794,2]
[384222275,1757293849805,-1124.8,0.00014794,2]
[384222277,1757293849815,-480.0,0.00014794,2]
[384222279,1757293849824,-1960.88,0.00014794,2]
[384222281,1757293849833,-480.0,0.00014794,2]
[384222283,1757293849842,-738.44,0.00014794,2]
[384222285,1757293849851,-2121.4,0.00014794,2]
[384222287,1757293849861,-3405.04,0.00014794,2]
[384222289,1757293849871,-415.84,0.00014794,2]
[384222300,1757293849968,-1342.85,0.00014794,2]
[384222302,1757293849978,-815.74,0.00014794,2]
[384222303,1757293849988,-480.0,0.00014794,2]
[384222306,1757293849998,-1184.01,0.00014794,2]
[384222308,1757293850007,-994.51,0.00014794,2]
[384222309,1757293850017,-481.25,0.00014794,2]
[384222311,1757293850026,-480.0,0.00014794,2]
[384222314,1757293850036,-480.0,0.00014794,2]
[384222316,1757293850046,-656.64,0.00014794,2]
[384222317,1757293850055,-1618.62,0.00014794,2]
[384222319,1757293850064,-480.0,0.00014794,2]
[384222321,1757293850073,-544.3,0.00014794,2]
[384222323,1757293850083,-757.5,0.00014794,2]
[384222325,1757293850092,-1933.15,0.00014794,2]
[384222327,1757293850102,-556.54,0.00014794,2]
[384222329,1757293850111,-480.0,0.00014794,2]
[384222331,1757293850120,-586.27,0.00014794,2]
[384222333,1757293850130,-795.65,0.00014794,2]